bitfinex/quotes_SOLUSD_20230102
["timestamp","ask_amount","ask_price","bid_price","bid_amount"]
[1672630778424,0.0028503,9.9479,9.9451,20.0]
[1672630780208,0.0028503,9.9479,9.9449,20.0]
[1672630781476,0.0028503,9.9479,9.945,30.0]
[1672630781675,0.0028503,9.9479,9.9451,20.0]
[1672630785048,0.0028503,9.9479,9.9452,30.0]
[1672630785249,0.0028503,9.9479,9.9453,20.0]
[1672630786949,0.0028503,9.9479,9.9454,81.08745893]
[1672630787146,0.0028503,9.9479,9.9456,30.0]
[1672630787363,0.0028503,9.9479,9.9457,20.0]
[1672630787570,0.0028503,9.9479,9.9458,30.0]
[1672630787887,0.0028503,9.9479,9.946,30.0]
[1672630788113,0.0028503,9.9479,9.9462,30.0]
[1672630788412,0.0028503,9.9479,9.9464,30.0]
[1672630788626,0.0028503,9.9479,9.9465,20.0]
[1672630788937,0.0028503,9.9479,9.9466,30.0]
[1672630789127,0.0028503,9.9479,9.9468,30.0]
[1672630789339,0.0028503,9.9479,9.947,30.0]
[1672630789774,0.0028503,9.9479,9.9472,30.0]
[1672630789988,0.0028503,9.9479,9.9473,20.0]
[1672630790197,0.0028503,9.9479,9.9474,30.0]
[1672630790412,0.0028503,9.9479,9.9475,20.0]
[1672630790617,0.0028503,9.9479,9.9476,30.0]
[1672630790832,0.0028503,9.9479,9.9477,20.0]
[1672630791147,0.0028503,9.9479,9.9478,30.0]
[1672630791360,0.0028503,9.9479,9.9478,121.06210055]
[1672630791970,0.0028503,9.9479,9.9478,91.06210055]
[1672630793147,0.0028503,9.9479,9.9478,20.0]
[1672630793334,0.0028503,9.9479,9.9471,20.0]
[1672630795251,0.0028503,9.9479,9.9455,20.0]
[1672630796190,0.0028503,9.9479,9.9456,116.86940841]
[1672630796387,0.0028503,9.9479,9.9457,20.0]
[1672630796606,0.0028503,9.9479,9.9458,30.0]
[1672630796819,0.0028503,9.9479,9.9459,20.0]
[1672630797144,0.0028503,9.9479,9.946,81.08745893]
[1672630797328,0.0028503,9.9479,9.9462,30.0]
[1672630797538,0.0028503,9.9479,9.9463,20.0]
[1672630797751,0.0028503,9.9479,9.9464,30.0]
[1672630797964,0.0028503,9.9479,9.9466,30.0]
[1672630798175,0.0028503,9.9479,9.9467,20.0]
[1672630798397,0.0028503,9.9479,9.9468,30.0]
[1672630798707,0.0028503,9.9479,9.947,30.0]
[1672630798919,0.0028503,9.9479,9.9469,20.0]
[1672630798920,0.0028503,9.9479,9.9471,20.0]
[1672630799135,0.0028503,9.9479,9.9472,30.0]
[1672630799323,0.0028503,9.9479,9.9473,20.0]
[1672630799749,0.0028503,9.9479,9.9474,71.06210055]
[1672630799964,0.0028503,9.9479,9.9475,20.0]
[1672630800294,0.0028503,9.9479,9.9476,71.06210055]
[1672630800605,0.0028503,9.9479,9.9477,20.0]
[1672630801846,0.0028503,9.9479,9.9477,71.06210055]
[1672630802052,0.0028503,9.9479,9.9478,20.0]
[1672630802388,0.0028503,9.9479,9.9478,91.06210055]
[1672630854959,0.0028503,9.9479,9.9478,20.0]
[1672630856001,0.0028503,9.9479,9.9458,71.06210055]
[1672630856002,0.0028503,9.9479,9.9461,20.0]
[1672630866099,0.0028503,9.9479,9.9459,20.0]
[1672630867756,0.0028503,9.9479,9.946,30.0]
[1672630867966,0.0028503,9.9479,9.9461,20.0]
[1672630870802,0.0028503,9.9479,9.9459,20.0]
[1672630878608,0.0028503,9.9479,9.946,30.0]
[1672630878824,0.0028503,9.9479,9.9461,20.0]
[1672630879775,0.0028503,9.9479,9.946,20.0]
[1672630880609,0.0028503,9.9479,9.9459,20.0]
[1672630881746,0.0028503,9.9479,9.9455,20.0]
[1672630882824,0.0028503,9.9479,9.9454,20.0]
[1672630885660,0.0028503,9.9479,9.9453,20.0]
[1672630886478,0.0028503,9.9479,9.9454,30.0]
[1672630886707,0.0028503,9.9479,9.9455,20.0]
[1672630887025,0.0028503,9.9479,9.9456,30.0]
[1672630887337,0.0028503,9.9479,9.9457,20.0]
[1672630887555,0.0028503,9.9479,9.9458,30.0]
[1672630887744,0.0028503,9.9479,9.9459,20.0]
[1672630887953,0.0028503,9.9479,9.946,30.0]
[1672630888164,0.0028503,9.9479,9.9461,20.0]
[1672630888486,0.0028503,9.9479,9.9462,30.0]
[1672630888698,0.0028503,9.9479,9.9462,101.06210055]
[1672630888897,0.0028503,9.9479,9.9463,20.0]
[1672630889111,0.0028503,9.9479,9.9463,91.06210055]
[1672630889336,0.0028503,9.9479,9.9464,91.06210055]
[1672630889540,0.0028503,9.9479,9.9464,71.06210055]
[1672630889749,0.0028503,9.9479,9.9465,91.06210055]
[1672630889953,0.0028503,9.9479,9.9465,71.06210055]
[1672630890485,0.0028503,9.9479,9.9466,20.0]
[1672630891429,0.0028503,9.9479,9.9451,74.98285212]
[1672630891430,0.0028503,9.9479,9.9452,20.0]
[1672630894576,0.0028503,9.9479,9.9452,94.98285212]
[1672630896279,0.0028503,9.9479,9.9453,30.0]
[1672630896589,0.0028503,9.9479,9.9454,20.0]
[1672630896803,0.0028503,9.9479,9.9455,30.0]
[1672630897016,0.0028503,9.9479,9.9456,20.0]
[1672630897730,0.0028503,9.9479,9.9457,30.0]
[1672630897946,0.0028503,9.9479,9.9458,20.0]
[1672630898983,0.0028503,9.9479,9.9459,30.0]
[1672630899204,0.0028503,9.9479,9.946,20.0]
[1672630899410,0.0028503,9.9479,9.9461,30.0]
[1672630899612,0.0028503,9.9479,9.9462,20.0]
[1672630900789,0.0028503,9.9479,9.9462,91.06210055]
[1672630902771,0.0028503,9.9479,9.9463,30.0]
[1672630902996,0.0028503,9.9479,9.9463,45.80730786]
[1672630903216,0.0028503,9.9479,9.9463,15.80730786]
[1672630903403,0.0028503,9.9479,9.9464,20.0]
[1672630903611,0.0028503,9.9479,9.9465,30.0]
[1672630903824,0.0028503,9.9479,9.9466,20.0]
[1672630904261,0.0028503,9.9479,9.945,20.0]
[1672630904469,0.0028503,9.9479,9.9449,20.0]
[1672630905405,0.0028503,9.9479,9.9451,74.98285212]
[1672630905619,0.0028503,9.9479,9.9452,20.0]
[1672630907192,0.0028503,9.9479,9.9452,94.98285212]
[1672630907403,0.0028503,9.9479,9.9452,20.0]
[1672630908251,0.0028503,9.9479,9.9379,30.0]
[1672630908570,0.0028503,9.9479,9.938,67.07268887]
[1672630908784,0.0028503,9.9479,9.9381,30.0]
[1672630908978,0.0028503,9.9479,9.9381,92.87999673]
[1672630909189,0.0028503,9.9479,9.9383,30.0]
[1672630909419,0.0028503,9.9479,9.9384,20.0]
[1672630909742,0.0028503,9.9479,9.9385,97.99011048]
[1672630909926,0.0028503,9.9479,9.9386,20.0]
[1672630910138,0.0028503,9.9479,9.9387,30.0]
[1672630910347,0.0028503,9.9479,9.9389,30.0]
[1672630910681,0.0028503,9.9479,9.9391,30.0]
[1672630910996,0.0028503,9.9479,9.9393,30.0]
[1672630911185,0.0028503,9.9479,9.9395,30.0]
[1672630911395,0.0028503,9.9479,9.94,5.73]
[1672630911607,0.0028503,9.9479,9.9401,30.0]
[1672630911815,0.0028503,9.9479,9.9403,30.0]
[1672630912046,0.0028503,9.9479,9.9404,20.0]
[1672630912253,0.0028503,9.9479,9.9405,30.0]
[1672630912761,0.0028503,9.9479,9.9407,30.0]
[1672630913179,0.0028503,9.9479,9.9408,20.0]
[1672630913389,0.0028503,9.9479,9.9409,30.0]
[1672630913812,0.0028503,9.9479,9.9411,30.0]
[1672630914243,0.0028503,9.9479,9.9412,20.0]
[1672630914436,0.0028503,9.9479,9.9413,30.0]
[1672630914878,0.0028503,9.9479,9.9414,20.0]
[1672630915089,0.0028503,9.9479,9.9415,30.0]
[1672630915300,0.0028503,9.9479,9.9416,20.0]
[1672630915523,0.0028503,9.9479,9.9417,30.0]
[1672630915717,0.0028503,9.9479,9.9419,30.0]
[1672630916229,0.0028503,9.9479,9.942,20.0]
[1672630916439,0.0028503,9.9479,9.9421,30.0]
[1672630916876,0.0028503,9.9479,9.9423,30.0]
[1672630917399,0.0028503,9.9479,9.9425,30.0]
[1672630917821,0.0028503,9.9479,9.9427,30.0]
[1672630918230,0.0028503,9.9479,9.9428,20.0]
[1672630918440,0.0028503,9.9479,9.9429,30.0]
[1672630918986,0.0028503,9.9479,9.9431,30.0]
[1672630919511,0.0028503,9.9479,9.9432,20.0]
[1672630921190,0.0028503,9.9479,9.9433,30.0]
[1672630921400,0.0028503,9.9479,9.9434,20.0]
[1672630921718,0.0028503,9.9479,9.9435,30.0]
[1672630922257,0.0028503,9.9479,9.9436,20.0]
[1672630922457,0.0028503,9.9479,9.9437,30.0]
[1672630922664,0.0028503,9.9479,9.9437,83.54391554]
[1672630922876,0.0028503,9.9479,9.9439,30.0]
[1672630923300,0.0028503,9.9479,9.944,137.94446483]
[1672630923517,0.0028503,9.9479,9.9441,30.0]
[1672630923708,0.0028503,9.9479,9.9443,30.0]
[1672630924042,0.0028503,9.9479,9.9445,30.0]
[1672630924254,0.0028503,9.9479,9.9446,20.0]
[1672630924465,0.0028503,9.9479,9.9446,137.94446483]
[1672630924655,0.0028503,9.9479,9.9447,94.40054929]
[1672630924865,0.0028503,9.9479,9.9449,30.0]
[1672630925293,0.0028503,9.9479,9.945,20.0]
[1672630925501,0.0028503,9.9479,9.9451,30.0]
[1672630925719,0.0028503,9.9479,9.9453,30.0]
[1672630926251,0.0028503,9.9479,9.9454,73.54391554]
[1672630926673,0.0028503,9.9479,9.9455,53.54391554]
[1672630926880,0.0028503,9.9479,9.9456,20.0]
[1672630927407,0.0028503,9.9479,9.9457,53.54391554]
[1672630927590,0.0028503,9.9479,9.9458,20.0]
[1672630928035,0.0028503,9.9479,9.9459,53.54391554]
[1672630928224,0.0028503,9.9479,9.946,20.0]
[1672630928655,0.0028503,9.9479,9.9461,53.54391554]
[1672630928862,0.0028503,9.9479,9.9462,20.0]
[1672630929288,28.5028503,9.9535,9.9463,30.0]
[1672630929716,28.5028503,9.9535,9.9464,20.0]
[1672630930453,28.5028503,9.9535,9.9465,30.0]
[1672630930973,28.5028503,9.9535,9.9466,20.0]
[1672630931816,28.5028503,9.9535,9.9465,20.0]
[1672630932848,28.5028503,9.9535,9.9466,147.94446483]
[1672630933059,28.5028503,9.9535,9.9467,20.0]
[1672630934557,28.5028503,9.9535,9.9467,73.54391554]
[1672630947066,28.5028503,9.9535,9.9467,20.0]
[1672630947274,30.0,9.9533,9.9467,20.0]
[1672630948622,30.0,9.9531,9.945,20.0]
[1672630950307,30.0,9.9529,9.9441,64.40054929]
[1672630950527,5.69,9.95,9.9442,20.0]
[1672630950743,75.51,9.9499,9.9442,20.0]
[1672630950958,5.69,9.95,9.9442,20.0]
[1672630951264,28.69,9.95,9.9401,30.0]
[1672630951467,165.8121,9.9499,9.9402,20.0]
[1672630951788,30.0,9.9498,9.9403,30.0]
[1672630952000,195.8121,9.9498,9.9404,20.0]
[1672630952225,195.8121,9.9498,9.9405,30.0]
[1672630952404,195.8121,9.9498,9.9405,94.40054929]
[1672630952610,30.0,9.9496,9.9406,84.40054929]
[1672630953054,30.0,9.9494,9.9407,64.40054929]
[1672630953259,75.51,9.9493,9.9408,20.0]
[1672630953477,30.0,9.9492,9.9408,20.0]
[1672630953670,30.0,9.9492,9.9409,64.40054929]
[1672630953882,30.0,9.949,9.941,20.0]
[1672630954409,30.0,9.949,9.9411,64.40054929]
[1672630954615,30.0,9.9488,9.9412,20.0]
[1672630955048,30.0,9.9488,9.9413,64.40054929]
[1672630955244,24.0202,9.9487,9.9414,20.0]
[1672630955660,24.0202,9.9487,9.9415,64.40054929]
[1672630955894,30.0,9.9488,9.9415,64.40054929]
[1672630955895,30.0,9.9485,9.9416,20.0]
[1672630956197,105.52,9.9485,9.9416,20.0]
[1672630957461,75.52,9.9485,9.9416,20.0]
[1672630957677,30.0,9.9484,9.9417,30.0]
[1672630957871,30.0,9.9484,9.9418,20.0]
[1672630958080,30.0,9.9484,9.9416,20.0]
[1672630959863,75.52,9.9483,9.9399,20.0]
[1672630960095,242.5498,9.9483,9.9382,20.0]
[1672630960311,197.0298,9.9482,9.9382,20.0]
[1672630960494,30.0,9.948,9.9382,20.0]
[1672630960699,75.52,9.9479,9.9382,84.40054929]
[1672630960932,30.0,9.9478,9.9382,84.40054929]
[1672630961249,30.0,9.9476,9.9382,84.40054929]
[1672630961444,30.0,9.9474,9.9382,84.40054929]
[1672630961655,75.53,9.9473,9.9382,84.40054929]
[1672630961862,30.0,9.9472,9.9382,84.40054929]
[1672630962081,30.0,9.947,9.9382,20.0]
[1672630962289,75.53,9.9469,9.9368,20.0]
[1672630962487,30.0,9.9468,9.9368,20.0]
[1672630962702,30.0,9.9466,9.9368,20.0]
[1672630962914,30.0,9.9464,9.9368,20.0]
[1672630963123,75.53,9.9463,9.9368,20.0]
[1672630963329,30.0,9.9462,9.9368,20.0]
[1672630963555,75.53,9.9461,9.9368,20.0]
[1672630963774,30.0,9.946,9.9368,20.0]
[1672630963977,75.54,9.9459,9.9368,20.0]
[1672630964195,30.0,9.9458,9.9368,20.0]
[1672630964392,30.0,9.9456,9.9368,20.0]
[1672630965029,53.7144,9.9456,9.9368,20.0]
[1672630965233,30.0,9.9454,9.9368,20.0]
[1672630965443,75.54,9.9453,9.9368,20.0]
[1672630965655,30.0,9.9452,9.9368,20.0]
[1672630966192,30.0,9.945,9.9368,20.0]
[1672630966719,30.0,9.945,9.9369,64.40054929]
[1672630966902,30.0,9.945,9.937,20.0]
[1672630967329,30.0,9.945,9.937,84.40054929]
[1672630971131,30.0,9.945,9.9371,30.0]
[1672630971444,30.0,9.945,9.9372,20.0]
[1672630972280,30.0,9.945,9.9371,20.0]
[1672630972903,30.0,9.9454,9.9371,20.0]
[1672630974935,30.0,9.9454,9.9372,30.0]
[1672630975227,30.0,9.9454,9.9373,20.0]
[1672630975849,30.0,9.9454,9.9371,20.0]
[1672630976911,30.0,9.9454,9.9371,84.40054929]
[1672630977119,30.0,9.9454,9.9372,30.0]
[1672630977448,30.0,9.9454,9.9373,84.40054929]
[1672630978803,23.7144,9.9456,9.9374,83.54391554]
[1672630979025,23.7144,9.9456,9.9375,20.0]
[1672630979244,23.7144,9.9456,9.9376,30.0]
[1672630979452,23.7144,9.9456,9.9376,163.75177269]
[1672630979646,23.7144,9.9456,9.9377,100.20785715]
[1672630979863,23.7144,9.9456,9.9378,30.0]
[1672630980178,23.7144,9.9456,9.938,30.0]
[1672630980388,23.7144,9.9456,9.9382,30.0]
[1672630980802,23.7144,9.9456,9.9384,30.0]
[1672630981014,23.7144,9.9456,9.9386,30.0]
[1672630981338,23.7144,9.9456,9.9388,30.0]
[1672630981553,23.7144,9.9456,9.9389,20.0]
[1672630981758,23.7144,9.9456,9.939,30.0]
[1672630981983,23.7144,9.9456,9.9391,20.0]
[1672630982291,23.7144,9.9456,9.9392,30.0]
[1672630982501,23.7144,9.9456,9.9393,20.0]
[1672630982709,23.7144,9.9456,9.9394,30.0]
[1672630983318,23.7144,9.9456,9.9395,20.0]
[1672630986692,23.7144,9.9456,9.9397,30.0]
[1672630986903,23.7144,9.9456,9.9398,20.0]
[1672630988070,23.7144,9.9456,9.9399,30.0]
[1672630988286,23.7144,9.9456,9.94,20.0]
[1672630988909,23.7144,9.9456,9.9398,20.0]
[1672630989222,23.7144,9.9456,9.9397,20.0]
[1672630991842,23.7144,9.9456,9.9398,30.0]
[1672630992051,23.7144,9.9456,9.9399,20.0]
[1672630994288,23.7144,9.9456,9.9397,20.0]
[1672630997972,23.7144,9.9456,9.9398,30.0]
[1672630998174,23.7144,9.9456,9.9399,20.0]
[1672631000578,23.7144,9.9456,9.9399,73.53670038]
[1672631000792,23.7144,9.9456,9.94,30.0]
[1672631001002,23.7144,9.9456,9.9401,20.0]
[1672631002068,23.7144,9.9456,9.9402,30.0]
[1672631002281,23.7144,9.9456,9.9403,20.0]
[1672631002697,23.7144,9.9456,9.9404,30.0]
[1672631002895,23.7144,9.9456,9.9406,30.0]
[1672631003109,23.7144,9.9456,9.9407,20.0]
[1672631003431,23.7144,9.9456,9.9408,30.0]
[1672631003839,23.7144,9.9456,9.9409,20.0]
[1672631010789,23.7144,9.9456,9.941,30.0]
[1672631011320,23.7144,9.9456,9.9411,20.0]
[1672631011534,23.7144,9.9456,9.9412,30.0]
[1672631011847,23.7144,9.9456,9.9413,20.0]
[1672631012055,23.7144,9.9456,9.9414,30.0]
[1672631012261,23.7144,9.9456,9.9416,30.0]
[1672631012798,23.7144,9.9456,9.9417,20.0]
[1672631019811,23.7144,9.9456,9.9418,30.0]
[1672631020252,23.7144,9.9456,9.9419,20.0]
[1672631021921,23.7144,9.9456,9.942,30.0]
[1672631022341,23.7144,9.9456,9.9422,30.0]
[1672631022553,23.7144,9.9456,9.9424,30.0]
[1672631022763,23.7144,9.9456,9.9425,20.0]
[1672631023618,23.7144,9.9456,9.9426,30.0]
[1672631023813,23.7144,9.9456,9.9428,30.0]
[1672631024338,119.1338,9.9462,9.9429,20.0]
[1672631029502,119.1338,9.9462,9.943,30.0]
[1672631030024,119.1338,9.9462,9.9431,20.0]
[1672631032438,119.1338,9.9462,9.9432,30.0]
[1672631032855,119.1338,9.9462,9.9434,30.0]
[1672631033272,119.1338,9.9462,9.9435,20.0]
[1672631033688,23.1679,9.9485,9.9435,20.0]
[1672631033898,23.1679,9.9485,9.9436,30.0]
[1672631034440,23.1679,9.9485,9.9437,20.0]
[1672631042858,23.1679,9.9485,9.9435,20.0]
[1672631049356,23.1679,9.9485,9.9431,20.0]
[1672631050854,23.1679,9.9485,9.9427,20.0]
[1672631051805,23.1679,9.9485,9.9425,20.0]
[1672631056427,23.1679,9.9485,9.9421,20.0]
[1672631058745,23.1679,9.9485,9.9419,20.0]
[1672631058956,23.1679,9.9485,9.9418,30.0]
[1672631059160,23.1679,9.9485,9.9419,20.0]
[1672631063469,23.1679,9.9485,9.942,30.0]
[1672631063779,23.1679,9.9485,9.9421,20.0]
[1672631063993,30.0,9.9484,9.9421,20.0]
[1672631064192,23.1679,9.9485,9.9421,20.0]
[1672631064608,23.1679,9.9485,9.9419,20.0]
[1672631066080,23.1679,9.9485,9.942,30.0]
[1672631066291,23.1679,9.9485,9.9421,20.0]
[1672631067473,23.1679,9.9485,9.9419,20.0]
[1672631072414,23.1679,9.9485,9.9416,20.0]
[1672631072817,30.0,9.9484,9.9416,20.0]
[1672631075148,23.1679,9.9485,9.9417,30.0]
[1672631075331,23.1679,9.9485,9.9418,20.0]
[1672631079755,23.1679,9.9485,9.9416,20.0]
[1672631080790,23.1679,9.9485,9.9417,30.0]
[1672631081128,23.1679,9.9485,9.9418,20.0]
[1672631081843,23.1679,9.9485,9.9419,30.0]
[1672631082059,23.1679,9.9485,9.942,20.0]
[1672631086373,23.1679,9.9485,9.9412,20.0]
[1672631086818,30.0,9.9483,9.9412,20.0]
[1672631087132,23.2547,9.9484,9.9412,20.0]
[1672631087317,23.2547,9.9483,9.9412,20.0]
[1672631090177,23.2547,9.9483,9.9413,30.0]
[1672631090501,23.2547,9.9483,9.9414,20.0]
[1672631090807,23.2547,9.9483,9.9412,20.0]
[1672631091011,23.2547,9.9483,9.9411,20.0]
[1672631091846,24.8774,9.9482,9.9411,20.0]
[1672631092472,24.8774,9.9482,9.9412,61.31275332]
[1672631092681,24.8774,9.9482,9.9413,50.0]
[1672631093415,30.0,9.9481,9.9413,20.0]
[1672631093955,24.8774,9.9482,9.9413,20.0]
[1672631094568,24.8774,9.9482,9.9414,30.0]
[1672631094802,24.8774,9.9482,9.9415,20.0]
[1672631098479,24.8774,9.9482,9.9416,30.0]
[1672631098798,24.8774,9.9482,9.9417,20.0]
[1672631100561,30.0,9.9481,9.9417,20.0]
[1672631100766,24.8774,9.9482,9.9414,30.0]
[1672631100973,24.8774,9.9482,9.9415,20.0]
[1672631101188,24.8774,9.9482,9.9416,30.0]
[1672631101408,24.8774,9.9482,9.9417,20.0]
[1672631102886,30.0,9.9481,9.9413,20.0]
[1672631103093,24.8774,9.9482,9.9413,20.0]
[1672631103629,24.8774,9.9482,9.9414,30.0]
[1672631103824,24.8774,9.9482,9.9415,20.0]
[1672631110033,30.0,9.9481,9.9415,20.0]
[1672631110565,24.8774,9.9482,9.9415,20.0]
[1672631113276,24.8774,9.9482,9.9413,20.0]
[1672631114345,30.0,9.9481,9.9413,20.0]
[1672631114959,24.8774,9.9482,9.9414,30.0]
[1672631115178,24.8774,9.9482,9.9415,20.0]
[1672631115390,30.0,9.9481,9.9413,20.0]
[1672631115600,24.8774,9.9482,9.9413,20.0]
[1672631115921,24.8774,9.9482,9.9414,30.0]
[1672631116122,24.8774,9.9482,9.9415,20.0]
[1672631116877,24.8774,9.9482,9.9413,20.0]
[1672631118352,30.0,9.9481,9.9413,20.0]
[1672631118548,24.8774,9.9482,9.9413,20.0]
[1672631119499,24.8774,9.9482,9.9414,30.0]
[1672631119699,24.8774,9.9482,9.9416,30.0]
[1672631119909,24.8774,9.9482,9.9417,20.0]
[1672631120324,30.0,9.9481,9.9417,20.0]
[1672631120845,30.0,9.9481,9.9413,20.0]
[1672631121482,24.8774,9.9482,9.9414,30.0]
[1672631121692,24.8774,9.9482,9.9413,20.0]
[1672631122526,24.8774,9.9482,9.9414,30.0]
[1672631122733,24.8774,9.9482,9.9415,20.0]
[1672631125809,24.8774,9.9482,9.9413,20.0]
[1672631126541,24.8774,9.9482,9.9414,30.0]
[1672631126742,24.8774,9.9482,9.9415,20.0]
[1672631127153,30.0,9.9481,9.9415,20.0]
[1672631127575,75.51,9.948,9.9413,20.0]
[1672631127786,209.611,9.948,9.9389,20.0]
[1672631128012,158.3523,9.9479,9.9376,20.0]
[1672631128223,0.10336145,9.9389,9.9369,20.0]
[1672631128423,0.10336145,9.9389,9.937,24.0337]
[1672631128850,0.10336145,9.9389,9.9371,20.0]
[1672631132737,0.10336145,9.9389,9.9372,11.40621372]
[1672631132942,0.10336145,9.9389,9.9373,20.0]
[1672631135693,0.10336145,9.9389,9.9374,11.40317451]
[1672631135901,0.10336145,9.9389,9.9375,20.0]
[1672631136310,0.02360052,9.9389,9.9375,20.0]
[1672631139574,0.02360052,9.9389,9.9376,11.40013542]
[1672631139783,0.02360052,9.9389,9.9377,20.0]
[1672631143675,0.02360052,9.9389,9.9378,11.39709646]
[1672631143892,0.02360052,9.9389,9.9379,20.0]
[1672631147766,0.02360052,9.9389,9.938,11.39405762]
[1672631148399,0.02360052,9.9389,9.9381,20.0]
[1672631151765,0.02360052,9.9389,9.9382,11.3910189]
[1672631152382,0.02360052,9.9389,9.9383,20.0]
[1672631155656,0.02360052,9.9389,9.9384,11.3879803]
[1672631155870,0.02360052,9.9389,9.9385,20.0]
[1672631159550,0.02360052,9.9389,9.9386,11.38494182]
[1672631159761,0.02360052,9.9389,9.9387,20.0]
[1672631163870,0.02360052,9.9389,9.9388,11.38190347]
[1672631164511,0.02360052,9.9389,9.9388,31.38190347]
[1672631167241,30.0,9.9439,9.9389,0.08428137]
[1672631167429,30.0,9.9443,9.9389,20.08428137]
[1672631167867,75.54,9.9446,9.9389,20.08428137]
[1672631168696,75.54,9.9446,9.939,11.37886524]
[1672631168918,75.54,9.9448,9.9391,20.0]
[1672631169323,75.54,9.945,9.9391,20.0]
[1672631170386,75.53,9.9454,9.9391,20.0]
[1672631170616,30.0,9.9453,9.9391,20.0]
[1672631170822,30.0,9.9451,9.9391,20.0]
[1672631171141,30.0,9.9449,9.9391,20.0]
[1672631171331,75.54,9.9448,9.9391,20.0]
[1672631171547,30.0,9.9447,9.9391,20.0]
[1672631171754,30.0,9.9447,9.9392,11.37582713]
[1672631172297,30.0,9.9447,9.9393,20.0]
[1672631172513,30.0,9.9449,9.9393,20.0]
[1672631173668,75.54,9.945,9.9393,20.0]
[1672631173859,75.54,9.9452,9.9393,20.0]
[1672631174189,30.0,9.9451,9.9393,20.0]
[1672631174377,75.54,9.945,9.9393,20.0]
[1672631174595,30.0,9.9451,9.9393,20.0]
[1672631175545,75.54,9.9452,9.9393,20.0]
[1672631175757,75.53,9.9454,9.9394,11.37278915]
[1672631176188,75.53,9.9455,9.9395,20.0]
[1672631176911,30.0,9.9454,9.9395,20.0]
[1672631177129,30.0,9.9452,9.9395,20.0]
[1672631177762,75.54,9.9453,9.9395,20.0]
[1672631178175,30.0,9.9452,9.9395,20.0]
[1672631178801,75.54,9.9453,9.9395,20.0]
[1672631179017,30.0,9.9452,9.9395,20.0]
[1672631179758,30.0,9.9452,9.9396,11.36975128]
[1672631180166,30.0,9.9452,9.9397,20.0]
[1672631180702,30.0,9.945,9.9397,20.0]
[1672631180919,75.54,9.9451,9.9397,20.0]
[1672631181128,75.54,9.9453,9.9397,20.0]
[1672631181332,30.0,9.9454,9.9397,20.0]
[1672631183860,30.0,9.9454,9.9398,11.36671354]
[1672631184269,30.0,9.9454,9.9399,20.0]
[1672631187624,30.0,9.9454,9.94,11.36367592]
[1672631187837,30.0,9.9454,9.9401,20.0]
[1672631189011,30.0,9.9455,9.9401,20.0]
[1672631191829,30.0,9.9455,9.9402,11.36063842]
[1672631192251,30.0,9.9455,9.9403,20.0]
[1672631195609,30.0,9.9455,9.9404,11.35760105]
[1672631195819,30.0,9.9455,9.9405,20.0]
[1672631196471,24.1251,9.9456,9.9405,20.0]
[1672631197083,30.0,9.9455,9.9405,20.0]
[1672631199719,30.0,9.9455,9.9406,11.3545638]
[1672631200146,24.1251,9.9456,9.9406,11.3545638]
[1672631200464,24.1251,9.9456,9.9407,20.0]
[1672631203210,24.1251,9.9456,9.9408,124.80315171]
[1672631203510,75.51,9.948,9.9408,124.80315171]
[1672631203511,75.48,9.9524,9.9409,144.80315171]
[1672631203714,105.45,9.956,9.941,30.0]
[1672631203929,105.45,9.956,9.941,305.60455171]
[1672631204140,105.45,9.956,9.9411,144.80315171]
[1672631204347,105.45,9.956,9.9411,234.01637842]
[1672631204559,30.0,9.9559,9.9412,290.87457842]
[1672631204769,75.45,9.9558,9.9413,20.0]
[1672631204986,75.45,9.9558,9.9413,234.01637842]
[1672631205178,105.45,9.9559,9.9414,263.79597842]
[1672631205391,105.45,9.9559,9.9416,30.0]
[1672631205824,105.45,9.9559,9.9418,30.0]
[1672631206039,105.45,9.9559,9.9419,20.0]
[1672631206347,105.45,9.9559,9.942,30.0]
[1672631206579,30.0,9.9576,9.95,5.72]
[1672631206580,99.1176,9.9564,9.95,5.72]
[1672631206781,23.6676,9.9564,9.9501,20.0]
[1672631207423,23.6676,9.9564,9.9502,30.0]
[1672631207845,23.6676,9.9564,9.9503,20.0]
[1672631209438,30.0,9.9563,9.9503,20.0]
[1672631210802,75.45,9.9562,9.9503,20.0]
[1672631210995,30.0,9.9561,9.9503,20.0]
[1672631211205,75.45,9.956,9.9503,20.0]
[1672631211420,30.0,9.9559,9.9503,20.0]
[1672631211742,30.0,9.9559,9.9504,11.20588799]
[1672631212343,30.0,9.9559,9.9505,20.0]
[1672631215422,30.0,9.9557,9.9505,20.0]
[1672631215823,30.0,9.9557,9.9506,11.20285684]
[1672631216378,30.0,9.9557,9.9507,20.0]
[1672631216778,75.45,9.956,9.9507,20.0]
[1672631216999,30.0,9.9563,9.9507,20.0]
[1672631217393,30.0,9.9562,9.9507,20.0]